[Event "4th EFE Metz Festival-IM"]
[Site "Metz"]
[Date "2018.07.24"]
[Round "2"]
[White "Le Corre, Benjamin"]
[Black "Haast, Mark"]
[Result "1-0"]
[ECO "B59"]
[WhiteElo "2257"]
[BlackElo "2356"]
[Annotator "NA"]
[PlyCount "89"]
[EventDate "2018.07.22"]
[EventType "tourn"]
[EventCountry "FRA"]
[SourceTitle "playchess.com"]
[Source "ChessBase"]
[SourceQuality "1"]
[TimeControl "5400+30"]

1. e4 {[%emt 0:00:00]} c5 {[%emt 0:00:11]} 2. Nf3 {[%emt 0:00:00]} Nc6 {[%emt 0:00:14]} 3. d4 {[%emt 0:00:00]} cxd4 {[%emt 0:00:10]} 4. Nxd4 {[%emt 0:00:00]} Nf6 {[%emt 0:00:10]} 5. Nc3 {[%emt 0:00:05]} d6 {[%emt 0:00:07]} 6. Be2 {[%emt 0:00:59]} e5 {[%emt 0:00:22]} 7. Nb3 {[%emt 0:00:18]} Be7 {[%emt 0:00:26]} 8. O-O {[%emt 0:02:39]} O-O {[%emt 0:00:12]} 9. Kh1 {[%emt 0:09:05]} a5 {[%emt 0:00:45]} 10. a4 {[%emt 0:00:53]} Be6 {[%emt 0:01:55]} 11. f4 {[%emt 0:01:32]} Nb4 {[%emt 0:00:42]} 12. f5 {[%emt 0:13:16]} Bd7 {[%emt 0:00:13]} 13. Bg5 {[%emt 0:06:21]} Bc6 {[%emt 0:02:28]} 14. Bxf6 {[%emt 0:06:40] B59: Classical Sicilian: 6 Be2 e5 7 Nb3} (14. Bf3 Qb6 15. Qe2 Rac8 16. Rfd1 Rfe8 17. Be3 Qc7 18. Qf2 Bd8 19. Rd2 Qb8 20. Ba7 Qa8 21. Bb6 Qa6 {½-½ (44) Le Hetet,N (2281)-Lagarde,M (2572) Agen 2016}) 14... Bxf6 {[%emt 0:00:09]} 15. Nd5 {[%emt 0:05:11]} Bxd5 {[%emt 0:00:23]} 16. exd5 {[%emt 0:00:07]} Re8 {[%emt 0:00:52]} 17. c3 {[%emt 0:02:02]} Na6 {[%emt 0:00:59]} 18. Bb5 {[%emt 0:02:06]} Re7 {[%emt 0:00:14]} 19. Qe2 $146 {[%emt 0:00:29]} ({Predecessor:} 19. Qg4 Qb6 20. Nd2 Rc7 21. Ne4 Kf8 {1-0 (60) Gunajew,R (2244)-Palacios Perez,M (2173) Calimanesti 2010}) 19... e4 {[%emt 0:01:32]} 20. Rf4 {[%emt 0:03:30]} e3 {[%emt 0:01:20]} 21. Rf3 {[%emt 0:03:02]} Qb6 {[%emt 0:01:11]} 22. Re1 {[%emt 0:01:49]} Nc7 {[%emt 0:05:19]} 23. Rxe3 {[%emt 0:02:54]} Nxd5 {[%emt 0:02:30]} 24. Rxe7 {[%emt 0:01:17]} Nxe7 {[%emt 0:00:07]} 25. Nd2 {[%emt 0:03:46]} d5 {[%emt 0:01:13]} 26. Nf3 {[%emt 0:00:13]} h6 {[%emt 0:00:54]} 27. Ne5 {[%emt 0:02:17]} Nc6 {[%emt 0:11:57]} 28. Ng4 {[%emt 0:01:49]} Na7 {[%emt 0:22:14]} 29. Be8 {[%emt 0:02:52]} Rd8 {[%emt 0:09:31]} 30. Bxf7+ {[%emt 0:10:25]} Kxf7 {[%emt 0:00:21]} 31. Nxh6+ {[%emt 0:00:06]} Kf8 $1 {[%emt 0:04:29]} ({Aber nicht} 31... gxh6 $2 32. Qh5+ {Falsch wäre} Kf8 $2 33. Qxh6+ (33. Re6 Qc6 $18) 33... Kg8 {[#]} 34. Qg6+ (34. Re7 $1 $18 {[%mdl 512]}) 34... Kh8 {[#]} 35. Re7 $1 $18 {[%mdl 512]}) 32. Qh5 {[%emt 0:00:14]} Qc7 $1 {[%emt 0:00:47]} 33. Qg6 {[%emt 0:01:04]} Nc6 {[%emt 0:04:07]} 34. Re6 {[%emt 0:02:47]} Nd4 $2 {[%emt 0:06:07]} (34... Be5 $11 {und Schwarz steht sicher.} 35. Qh7 gxh6 36. Rf6+ Bxf6 37. Qxc7 d4 38. cxd4 Rxd4) 35. Rxf6+ {[%emt 0:04:25]} gxf6 {[%emt 0:00:07]} 36. Qxf6+ {[%emt 0:00:06]} Ke8 {[%emt 0:00:04]} 37. Qxd4 {[%emt 0:00:38]} Qe7 {[%emt 0:00:41]} 38. h3 $18 {[%emt 0:00:29]} Qe4 {[%emt 0:08:11]} 39. Qg7 {[%emt 0:00:52]} Qe7 {[%emt 0:01:16]} 40. Qg6+ {[%emt 0:03:13]} Kd7 {[%emt 0:00:08]} 41. Ng4 {[%emt 0:00:11]} Kc7 {[%emt 0:04:26]} 42. f6 {[%emt 0:00:42]} Qd6 {[%emt 0:00:20]} 43. Qg7+ {[%emt 0:01:22]} Rd7 {[%emt 0:00:08]} 44. f7 {[%emt 0:00:20]} Re7 {[%emt 0:00:09]} 45. f8=Q {[%emt 0:00:21]} 1-0

[Event "4th EFE Metz Festival-IM"]
[Site "Metz"]
[Date "2018.07.24"]
[Round "3"]
[White "Mohammad, Fahim"]
[Black "Adrian, Claude"]
[Result "0-1"]
[ECO "A30"]
[WhiteElo "2383"]
[BlackElo "2267"]
[Annotator "NA"]
[PlyCount "120"]
[EventDate "2018.07.22"]
[EventType "tourn"]
[EventCountry "FRA"]
[SourceTitle "playchess.com"]
[Source "ChessBase"]
[SourceQuality "1"]
[TimeControl "5400+30"]

1. c4 {[%emt 0:09:39]} c5 {[%emt 0:00:20]} 2. g3 {[%emt 0:00:10]} e6 {[%emt 0:00:12]} 3. Bg2 {[%emt 0:00:20]} Nf6 {[%emt 0:00:08]} 4. Nc3 {[%emt 0:00:36]} d5 {[%emt 0:00:13]} 5. cxd5 {[%emt 0:03:42]} exd5 {[%emt 0:00:07]} 6. d4 {[%emt 0:00:30]} cxd4 {[%emt 0:00:24]} 7. Qxd4 {[%emt 0:01:05]} Nc6 {[%emt 0:00:07]} 8. Qd1 {[%emt 0:03:16]} d4 {[%emt 0:05:41]} 9. Nb1 {[%emt 0:07:24]} Bb4+ {[%emt 0:04:46]} 10. Bd2 {[%emt 0:02:02]} O-O {[%emt 0:00:17]} 11. Nf3 {[%emt 0:01:43]} Re8 {[%emt 0:04:15]} 12. O-O {[%emt 0:01:26]} Bf8 {[%emt 0:00:38]} 13. Bf4 {[%emt 0:07:12]} h6 {[%emt 0:04:07]} 14. Na3 {[%emt 0:04:00]} Nd5 {[%emt 0:02:00]} 15. Bd2 {[%emt 0:02:20]} Bf5 {[%emt 0:21:52]} 16. Rc1 {[%emt 0:10:08]} Qf6 {[%emt 0:11:13]} 17. Nc4 {[%emt 0:08:32]} Rad8 {[%emt 0:02:56]} 18. Qb3 {[%emt 0:08:37]} Rxe2 {[%emt 0:03:45]} 19. Qxb7 {[%emt 0:02:30]} Rb8 {[%emt 0:04:40]} 20. Qa6 {[%emt 0:03:45]} Bd3 {[%emt 0:01:34]} 21. Qa4 {[%emt 0:02:07]} Nb6 {[%emt 0:06:59]} 22. Nxb6 {[%emt 0:00:56]} Rxb6 {[%emt 0:00:03]} 23. Rfe1 {[%emt 0:06:13]} Bb5 {[%emt 0:01:42]} 24. Qd1 {[%emt 0:01:58]} d3 {[%emt 0:01:15]} 25. Bc3 {[%emt 0:04:40]} Qe6 {[%emt 0:01:45]} 26. Bf1 {[%emt 0:01:27]} Bc5 {[%emt 0:10:28]} 27. Bxe2 {[%emt 0:00:29]} dxe2 {[%emt 0:00:04]} 28. Qd2 {[%emt 0:02:39]} Qf5 {[%emt 0:03:55]} 29. Qf4 {[%emt 0:00:50]} Qxf4 {[%emt 0:02:31]} 30. gxf4 {[%emt 0:00:01]} Nb4 {[%emt 0:02:23]} 31. f5 {[%emt 0:02:42]} Nd3 {[%emt 0:01:09]} 32. Bd2 {[%emt 0:02:09]} Bxf2+ {[%emt 0:00:50]} 33. Kg2 {[%emt 0:00:06]} Bxe1 {[%emt 0:00:16]} 34. Rc8+ {[%emt 0:00:08]} Kh7 {[%emt 0:00:02]} 35. Nxe1 {[%emt 0:01:21]} Nxe1+ {[%emt 0:01:10]} 36. Bxe1 {[%emt 0:00:14]} Rf6 {[%emt 0:01:01]} 37. Rc5 {[%emt 0:00:27]} Bd3 {[%emt 0:00:44]} 38. Kf2 {[%emt 0:00:26]} Rxf5+ {[%emt 0:00:46]} 39. Rxf5 {[%emt 0:00:09]} Bxf5 {[%emt 0:00:02]} 40. Kxe2 {[%emt 0:00:07]} g5 {[%emt 0:00:36]} 41. b4 {[%emt 0:01:12]} Bd7 {[%emt 0:01:06]} 42. Kf3 {[%emt 0:00:53]} f5 {[%emt 0:00:24]} 43. h4 {[%emt 0:00:24]} Kg6 {[%emt 0:00:07]} 44. hxg5 {[%emt 0:00:21]} hxg5 {[%emt 0:00:04]} 45. Bg3 {[%emt 0:00:22]} Bc6+ {[%emt 0:00:20]} 46. Ke3 {[%emt 0:00:32]} a6 {[%emt 0:00:18]} 47. Be5 {[%emt 0:00:52]} Kh5 {[%emt 0:00:18]} 48. Kf2 {[%emt 0:00:44]} Kg4 {[%emt 0:00:08]} 49. Ke3 {[%emt 0:00:24]} f4+ {[%emt 0:00:29]} 50. Kf2 {[%emt 0:00:04]} Kf5 {[%emt 0:00:11]} 51. Bc7 {[%emt 0:00:41]} g4 {[%emt 0:00:09]} 52. Bb8 {[%emt 0:00:30]} g3+ {[%emt 0:00:10]} 53. Kg1 {[%emt 0:00:18]} Kg4 {[%emt 0:00:13]} 54. Bc7 {[%emt 0:00:41]} f3 {[%emt 0:00:10]} 55. Bb6 {[%emt 0:00:13]} Kf5 {[%emt 0:00:23]} 56. Ba7 {[%emt 0:00:56]} Ke4 {[%emt 0:00:13]} 57. Bb6 {[%emt 0:00:20]} Kd3 {[%emt 0:00:09]} 58. Bc7 {[%emt 0:00:46]} f2+ {[%emt 0:00:31]} 59. Kf1 {[%emt 0:00:04]} Ke3 {[%emt 0:00:24]} 60. Bb6+ {[%emt 0:00:07]} Kf3 {[%emt 0:00:09]} 0-1

[Event "4th EFE Metz Festival-IM"]
[Site "Metz"]
[Date "2018.07.24"]
[Round "3"]
[White "Gatineau, Yovann"]
[Black "Le Corre, Benjamin"]
[Result "1/2-1/2"]
[ECO "A45"]
[WhiteElo "2373"]
[BlackElo "2257"]
[Annotator "NA"]
[PlyCount "101"]
[EventDate "2018.07.22"]
[EventType "tourn"]
[EventCountry "FRA"]
[SourceTitle "playchess.com"]
[Source "ChessBase"]
[SourceQuality "1"]
[TimeControl "5400+30"]

1. d4 {[%emt 0:10:28]} Nf6 {[%emt 0:00:17]} 2. Bf4 {[%emt 0:00:07]} d5 {[%emt 0:00:06]} 3. e3 {[%emt 0:00:05]} e6 {[%emt 0:00:12]} 4. c4 {[%emt 0:01:42]} c5 {[%emt 0:02:44]} 5. Nf3 {[%emt 0:05:18]} cxd4 {[%emt 0:01:22]} 6. Nxd4 {[%emt 0:00:59]} Bb4+ {[%emt 0:03:15]} 7. Nc3 {[%emt 0:00:09]} O-O {[%emt 0:00:45]} 8. Qb3 {[%emt 0:03:00]} Qe7 {[%emt 0:11:43]} 9. Nc2 {[%emt 0:19:52]} Bxc3+ {[%emt 0:04:34]} 10. Qxc3 {[%emt 0:00:14]} Ne4 {[%emt 0:01:25]} 11. Qa3 {[%emt 0:03:06]} Qh4 {[%emt 0:08:06]} 12. g3 {[%emt 0:01:59]} Qf6 {[%emt 0:00:13]} 13. f3 {[%emt 0:01:13]} e5 {[%emt 0:03:07]} 14. fxe4 {[%emt 0:00:06]} dxe4 {[%emt 0:04:03]} 15. O-O-O {[%emt 0:03:02]} exf4 {[%emt 0:05:17]} 16. exf4 {[%emt 0:06:13]} Bg4 {[%emt 0:07:02]} 17. Rd6 {[%emt 0:01:32]} Rd8 {[%emt 0:02:14]} 18. Rxd8+ {[%emt 0:00:04]} Qxd8 {[%emt 0:00:04]} 19. Bg2 {[%emt 0:00:34]} Nd7 {[%emt 0:05:28]} 20. Bxe4 {[%emt 0:05:18]} Rc8 {[%emt 0:00:30]} 21. Qd3 {[%emt 0:15:17]} Qc7 {[%emt 0:04:18]} 22. Bd5 {[%emt 0:08:37]} Nb6 {[%emt 0:01:03]} 23. Re1 {[%emt 0:02:52]} g6 {[%emt 0:02:21]} 24. Ne3 {[%emt 0:01:39]} Nxd5 {[%emt 0:00:26]} 25. Nxd5 {[%emt 0:01:58]} Qxc4+ {[%emt 0:01:47]} 26. Qxc4 {[%emt 0:00:35]} Rxc4+ {[%emt 0:00:06]} 27. Nc3 {[%emt 0:00:01]} b5 {[%emt 0:02:48]} 28. Re4 {[%emt 0:02:48]} Rc8 {[%emt 0:00:11]} 29. Kd2 {[%emt 0:00:46]} Kg7 {[%emt 0:02:26]} 30. Ke3 {[%emt 0:00:58]} a6 {[%emt 0:05:38]} 31. a3 {[%emt 0:00:21]} h5 {[%emt 0:00:13]} 32. Rd4 {[%emt 0:03:19]} Rc6 {[%emt 0:00:25]} 33. Rd5 {[%emt 0:01:08]} Be6 {[%emt 0:02:51]} 34. Rd8 {[%emt 0:00:27]} Rb6 {[%emt 0:00:05]} 35. Ne4 {[%emt 0:00:56]} b4 {[%emt 0:00:49]} 36. Rd6 {[%emt 0:00:44]} Rxd6 {[%emt 0:00:37]} 37. Nxd6 {[%emt 0:00:02]} bxa3 {[%emt 0:00:06]} 38. bxa3 {[%emt 0:00:02]} Kf6 {[%emt 0:00:22]} 39. Kd4 {[%emt 0:00:17]} Bh3 {[%emt 0:02:43]} 40. Ne4+ {[%emt 0:00:15]} Kf5 {[%emt 0:03:17]} 41. Ng5 {[%emt 0:00:11]} Kg4 {[%emt 0:00:05]} 42. Nxf7 {[%emt 0:02:14]} Kf3 {[%emt 0:00:17]} 43. Ne5+ {[%emt 0:00:20]} Kg2 {[%emt 0:00:05]} 44. Nxg6 {[%emt 0:00:25]} Kxh2 {[%emt 0:00:05]} 45. Ke5 {[%emt 0:00:16]} Kxg3 {[%emt 0:00:05]} 46. f5 {[%emt 0:00:14]} Bxf5 {[%emt 0:02:16]} 47. Kxf5 {[%emt 0:00:04]} h4 {[%emt 0:00:05]} 48. Nf4 {[%emt 0:01:14]} h3 {[%emt 0:02:05]} 49. Nxh3 {[%emt 0:00:04]} Kxh3 {[%emt 0:00:05]} 50. a4 {[%emt 0:00:22]} Kh4 {[%emt 0:01:05]} 51. a5 {[%emt 0:00:05]} 1/2-1/2

[Event "4th EFE Metz Festival-IM"]
[Site "Metz"]
[Date "2018.07.24"]
[Round "3"]
[White "Haast, Mark"]
[Black "Harutyunyan, Ruben"]
[Result "0-1"]
[ECO "B56"]
[WhiteElo "2356"]
[BlackElo "2303"]
[Annotator "NA"]
[PlyCount "138"]
[EventDate "2018.07.22"]
[EventType "tourn"]
[EventCountry "FRA"]
[SourceTitle "playchess.com"]
[Source "ChessBase"]
[SourceQuality "1"]
[TimeControl "5400+30"]

1. e4 {[%emt 0:00:46]} c5 {[%emt 0:00:12]} 2. Nf3 {[%emt 0:00:42]} d6 {[%emt 0:00:05]} 3. d4 {[%emt 0:00:18]} cxd4 {[%emt 0:00:03]} 4. Nxd4 {[%emt 0:00:09]} Nf6 {[%emt 0:00:03]} 5. Nc3 {[%emt 0:00:14]} Nc6 {[%emt 0:00:03]} 6. f3 {[%emt 0:00:40]} e5 {[%emt 0:00:06]} 7. Nb3 {[%emt 0:00:09]} Be7 {[%emt 0:00:05]} 8. Be3 {[%emt 0:00:39]} O-O {[%emt 0:00:05]} 9. Qd2 {[%emt 0:00:16]} a5 {[%emt 0:00:03]} 10. Bb5 {[%emt 0:00:35]} Na7 {[%emt 0:00:07]} 11. Bd3 {[%emt 0:00:42]} Nc6 {[%emt 0:00:21]} 12. Bb5 {[%emt 0:00:59]} Na7 {[%emt 0:00:05]} 13. Bd3 {[%emt 0:00:06]} Be6 {[%emt 0:02:12]} 14. Rd1 {[%emt 0:00:56]} Nc8 {[%emt 0:01:15]} 15. O-O {[%emt 0:01:15]} a4 {[%emt 0:00:48]} 16. Nc1 {[%emt 0:00:11]} a3 {[%emt 0:01:04]} 17. b3 {[%emt 0:00:15]} Ra5 {[%emt 0:09:01]} 18. Qf2 {[%emt 0:10:31]} Qd7 {[%emt 0:30:59]} 19. b4 {[%emt 0:08:42]} Ra8 {[%emt 0:00:31]} 20. Bb5 {[%emt 0:02:15]} Qc7 {[%emt 0:00:26]} 21. Nd5 {[%emt 0:00:15]} Nxd5 {[%emt 0:06:46]} 22. exd5 {[%emt 0:00:07]} Bd7 {[%emt 0:00:53]} 23. Bxd7 {[%emt 0:01:55]} Qxd7 {[%emt 0:00:02]} 24. c4 {[%emt 0:06:26]} Bd8 {[%emt 0:01:46]} 25. f4 {[%emt 0:11:23]} exf4 {[%emt 0:02:54]} 26. Bxf4 {[%emt 0:04:35]} Ra4 {[%emt 0:02:47]} 27. Nd3 {[%emt 0:00:57]} Ne7 {[%emt 0:01:38]} 28. c5 {[%emt 0:02:48]} Nxd5 {[%emt 0:06:32]} 29. Bxd6 {[%emt 0:00:21]} Re8 {[%emt 0:04:25]} 30. c6 {[%emt 0:05:44]} bxc6 {[%emt 0:05:40]} 31. Nc5 {[%emt 0:00:26]} Bb6 {[%emt 0:00:10]} 32. Nxd7 {[%emt 0:00:59]} Bxf2+ {[%emt 0:00:07]} 33. Rxf2 {[%emt 0:00:40]} Rd8 {[%emt 0:01:59]} 34. Nc5 {[%emt 0:11:27]} Rxb4 {[%emt 0:00:05]} 35. Nd3 {[%emt 0:07:39]} Ra4 {[%emt 0:02:55]} 36. Bc5 {[%emt 0:02:39]} Nc3 {[%emt 0:02:26]} 37. Re1 {[%emt 0:00:52]} Ne4 {[%emt 0:04:59]} 38. Rf3 {[%emt 0:01:31]} g6 {[%emt 0:03:19]} 39. Be7 {[%emt 0:03:19]} Re8 {[%emt 0:00:41]} 40. Bf6 {[%emt 0:02:37]} Rc4 {[%emt 0:03:36]} 41. Rf4 {[%emt 0:04:49]} Re6 {[%emt 0:00:35]} 42. Ne5 {[%emt 0:00:48]} Nd6 {[%emt 0:02:02]} 43. Nxc4 {[%emt 0:00:50]} Rxe1+ {[%emt 0:00:04]} 44. Kf2 {[%emt 0:00:06]} Re4 {[%emt 0:00:07]} 45. Rxe4 {[%emt 0:04:10]} Nxe4+ {[%emt 0:00:05]} 46. Kf3 {[%emt 0:00:19]} Nxf6 {[%emt 0:00:36]} 47. Nxa3 {[%emt 0:00:01]} Kf8 {[%emt 0:01:11]} 48. Nc4 {[%emt 0:00:35]} Ke7 {[%emt 0:01:38]} 49. a4 {[%emt 0:00:06]} Nd7 {[%emt 0:02:04]} 50. a5 {[%emt 0:01:17]} Kd8 {[%emt 0:03:10]} 51. g4 {[%emt 0:01:25]} Kc7 {[%emt 0:01:29]} 52. g5 {[%emt 0:00:16]} Kb8 {[%emt 0:00:39]} 53. Kf4 {[%emt 0:00:48]} f6 {[%emt 0:01:13]} 54. h4 {[%emt 0:02:00]} Ka7 {[%emt 0:00:24]} 55. gxf6 {[%emt 0:01:22]} Nxf6 {[%emt 0:00:05]} 56. Kg5 {[%emt 0:00:26]} Ng8 {[%emt 0:00:29]} 57. Ne5 {[%emt 0:00:52]} c5 {[%emt 0:00:23]} 58. Kf4 {[%emt 0:00:56]} Ka6 {[%emt 0:00:13]} 59. Nd3 {[%emt 0:00:49]} c4 {[%emt 0:00:13]} 60. Ne5 {[%emt 0:00:29]} c3 {[%emt 0:00:07]} 61. Ke3 {[%emt 0:00:01]} Kxa5 {[%emt 0:00:19]} 62. Kd3 {[%emt 0:00:01]} Kb4 {[%emt 0:00:12]} 63. Nd7 {[%emt 0:00:19]} Ne7 {[%emt 0:00:30]} 64. Kc2 {[%emt 0:00:24]} Kc4 {[%emt 0:00:53]} 65. Ne5+ {[%emt 0:00:18]} Kd4 {[%emt 0:00:26]} 66. Nf3+ {[%emt 0:00:01]} Ke3 {[%emt 0:00:32]} 67. Ng5 {[%emt 0:00:02]} h6 {[%emt 0:01:02]} 68. Nf7 {[%emt 0:00:03]} h5 {[%emt 0:00:21]} 69. Kxc3 {[%emt 0:00:09]} Nf5 {[%emt 0:00:18] Kd4+} 0-1

[Event "4th EFE Metz Festival-IM"]
[Site "Metz"]
[Date "2018.07.24"]
[Round "3"]
[White "Mohota, Nisha"]
[Black "Stephan, Victor"]
[Result "1/2-1/2"]
[ECO "C42"]
[WhiteElo "2265"]
[BlackElo "2356"]
[Annotator "NA"]
[PlyCount "104"]
[EventDate "2018.07.22"]
[EventType "tourn"]
[EventCountry "FRA"]
[SourceTitle "playchess.com"]
[Source "ChessBase"]
[SourceQuality "1"]
[TimeControl "5400+30"]

1. e4 e5 {[%emt 0:00:58]} 2. Nf3 {[%emt 0:00:00]} Nf6 {[%emt 0:00:10]} 3. Nxe5 {[%emt 0:02:41]} d6 {[%emt 0:00:11]} 4. Nf3 {[%emt 0:00:02]} Nxe4 {[%emt 0:00:13]} 5. Nc3 {[%emt 0:00:06]} Nxc3 {[%emt 0:01:17]} 6. dxc3 {[%emt 0:00:03]} Nc6 {[%emt 0:00:16]} 7. Be3 {[%emt 0:01:45]} Be7 {[%emt 0:00:23]} 8. Qd2 {[%emt 0:00:03]} Be6 {[%emt 0:00:25]} 9. b3 {[%emt 0:06:42]} Qd7 {[%emt 0:05:26]} 10. O-O-O {[%emt 0:01:24]} O-O {[%emt 0:07:05]} 11. Bg5 {[%emt 0:06:42]} Rfe8 {[%emt 0:05:56]} 12. h3 {[%emt 0:06:13]} Rad8 {[%emt 0:09:27]} 13. Kb2 {[%emt 0:09:30]} Ne5 {[%emt 0:09:11]} 14. Nd4 {[%emt 0:05:47]} Bxg5 {[%emt 0:03:18]} 15. Qxg5 {[%emt 0:00:10]} h6 {[%emt 0:09:34]} 16. Qg3 {[%emt 0:01:37]} Qe7 {[%emt 0:00:51]} 17. f4 {[%emt 0:02:04]} Nc6 {[%emt 0:02:40]} 18. Nxc6 {[%emt 0:11:58]} bxc6 {[%emt 0:00:07]} 19. Ba6 {[%emt 0:00:19]} Qf6 {[%emt 0:03:48]} 20. Rhe1 {[%emt 0:02:07]} Rb8 {[%emt 0:06:15]} 21. Qf2 {[%emt 0:02:14]} c5 {[%emt 0:00:48]} 22. Qf1 {[%emt 0:02:32]} Bd7 {[%emt 0:03:48]} 23. Rxe8+ {[%emt 0:08:27]} Rxe8 {[%emt 0:00:52]} 24. Qf3 {[%emt 0:04:36]} c6 {[%emt 0:03:43]} 25. Bd3 {[%emt 0:05:53]} d5 {[%emt 0:01:31]} 26. Qf2 {[%emt 0:00:42]} d4 {[%emt 0:03:19]} 27. c4 {[%emt 0:07:07]} Re3 {[%emt 0:01:48]} 28. Kb1 {[%emt 0:06:04]} Bf5 {[%emt 0:02:39]} 29. g4 {[%emt 0:02:29]} Bxd3 {[%emt 0:00:55]} 30. Rxd3 {[%emt 0:00:07]} Qe7 {[%emt 0:01:05]} 31. Qg2 {[%emt 0:04:31]} Qd6 {[%emt 0:06:51]} 32. f5 {[%emt 0:01:01]} Re1+ {[%emt 0:01:22]} 33. Kb2 {[%emt 0:00:01]} Qf4 {[%emt 0:00:08]} 34. Qd2 {[%emt 0:00:42]} Qe4 {[%emt 0:01:29]} 35. Qa5 {[%emt 0:01:05]} Re2 {[%emt 0:01:32]} 36. Rd2 {[%emt 0:00:02]} Rxd2 {[%emt 0:01:23]} 37. Qxd2 {[%emt 0:00:02]} Kh7 {[%emt 0:01:13]} 38. Qh2 {[%emt 0:00:39]} Qe3 {[%emt 0:01:01]} 39. Qg2 {[%emt 0:00:26]} Qc3+ {[%emt 0:03:17]} 40. Kb1 {[%emt 0:00:02]} a5 {[%emt 0:01:32]} 41. Qxc6 {[%emt 0:00:06]} Qe1+ {[%emt 0:02:07]} 42. Kb2 {[%emt 0:00:01]} Qc3+ {[%emt 0:00:06]} 43. Kb1 {[%emt 0:00:01]} a4 {[%emt 0:00:57]} 44. Qxc5 {[%emt 0:01:33]} d3 {[%emt 0:00:37]} 45. cxd3 {[%emt 0:00:14]} axb3 {[%emt 0:00:31]} 46. axb3 {[%emt 0:00:07]} Qxb3+ {[%emt 0:00:03]} 47. Ka1 {[%emt 0:00:39]} Qc3+ {[%emt 0:00:37]} 48. Ka2 {[%emt 0:00:12]} Qc2+ {[%emt 0:00:25]} 49. Ka1 Qc3+ 50. Ka2 {[%emt 0:02:27]} Qc2+ {[%emt 0:00:04]} 51. Ka1 {[%emt 0:01:12]} Qc3+ {[%emt 0:00:04]} 52. Ka2 {[%emt 0:00:02]} Qc2+ {[%emt 0:00:05]} 1/2-1/2

[Event "4th EFE Metz Festival-IM"]
[Site "Metz"]
[Date "2018.07.25"]
[Round "4"]
[White "Mohammad, Fahim"]
[Black "Mohota, Nisha"]
[Result "0-1"]
[ECO "A43"]
[WhiteElo "2383"]
[BlackElo "2265"]
[Annotator "NA"]
[PlyCount "66"]
[EventDate "2018.07.22"]
[EventType "tourn"]
[EventCountry "FRA"]
[SourceTitle "playchess.com"]
[Source "ChessBase"]
[SourceQuality "1"]
[TimeControl "5400+30"]

1. d4 {[%emt 0:42:13]} Nf6 {[%emt 0:00:14]} 2. Nf3 {[%emt 0:00:04]} c5 {[%emt 0:01:50]} 3. d5 {[%emt 0:01:03]} b5 {[%emt 0:00:08]} 4. Bg5 {[%emt 0:00:15]} Qb6 {[%emt 0:00:19]} 5. Bxf6 {[%emt 0:04:33]} Qxf6 {[%emt 0:00:26]} 6. c3 {[%emt 0:00:13]} Qb6 {[%emt 0:00:15]} 7. e4 {[%emt 0:00:28]} d6 {[%emt 0:00:59]} 8. h3 {[%emt 0:00:58]} g6 {[%emt 0:00:43]} 9. Nbd2 {[%emt 0:01:07]} Bg7 {[%emt 0:02:17]} 10. Qc2 {[%emt 0:02:00]} O-O {[%emt 0:02:59]} 11. a4 {[%emt 0:01:30]} bxa4 {[%emt 0:09:49]} 12. Nc4 {[%emt 0:02:52]} Qc7 {[%emt 0:01:05]} 13. Rxa4 {[%emt 0:02:23]} e6 {[%emt 0:07:34]} 14. Ne3 {[%emt 0:05:04]} Nd7 {[%emt 0:01:03]} 15. Ra2 {[%emt 0:03:39]} Nb6 {[%emt 0:01:29]} 16. Be2 {[%emt 0:03:17]} exd5 {[%emt 0:04:22]} 17. Nxd5 {[%emt 0:02:38]} Nxd5 {[%emt 0:01:03]} 18. exd5 {[%emt 0:00:05]} Bf5 {[%emt 0:08:15]} 19. Qd2 {[%emt 0:01:14]} Be4 {[%emt 0:02:22]} 20. O-O {[%emt 0:03:25]} Qb7 {[%emt 0:00:03]} 21. Rd1 {[%emt 0:04:10]} Rfe8 22. Ba6 {[%emt 0:03:39]} Qb3 {[%emt 0:07:14]} 23. Ra3 {[%emt 0:01:33]} Qb6 {[%emt 0:00:10]} 24. Ne1 {[%emt 0:02:23]} Rab8 {[%emt 0:00:34]} 25. b3 {[%emt 0:00:37]} Qd8 {[%emt 0:03:02]} 26. Bf1 {[%emt 0:07:16]} Qf6 {[%emt 0:01:37]} 27. b4 {[%emt 0:02:09]} Re5 {[%emt 0:05:01]} 28. Bc4 {[%emt 0:02:28]} cxb4 {[%emt 0:00:58]} 29. cxb4 {[%emt 0:00:07]} Qh4 {[%emt 0:00:23]} 30. f3 {[%emt 0:00:38]} Bf5 {[%emt 0:00:35]} 31. Bf1 {[%emt 0:00:37]} Bh6 {[%emt 0:04:02]} 32. Qb2 {[%emt 0:00:51]} Rxe1 {[%emt 0:00:40]} 33. Rxe1 {[%emt 0:00:16]} Qxe1 {[%emt 0:00:11]} 0-1